fUSD/lending_fUSD_20240902
["ID","MTS","AMOUNT","RATE_DAILY","PERIOD"]
[336993547,1725294637725,-2013.31048833,0.00015,2]
[336993548,1725294637747,-845.302431,0.00015,2]
[336993549,1725294637835,-1083.44152584,0.00015,2]
[336993550,1725294637847,-5181.90402204,0.00015,2]
[336993551,1725294637855,-159.08093223,0.00015,2]
[336993552,1725294637867,-338.26352533,0.00015,2]
[336993553,1725294637878,-6016.27157419,0.00015,2]
[336993554,1725294637889,-60200.48900671,0.00015,2]
[336993555,1725294637900,-31464.65589235,0.00015,2]
[336993556,1725294637946,-653364.62627166,0.00015,2]
[336993557,1725294637957,-785.23100942,0.00015,2]
[336993558,1725294637970,-7796.38306745,0.00015,2]
[336993559,1725294638003,-7214.73959698,0.00015,2]
[336993560,1725294638014,-830.76722118,0.00015,2]
[336993561,1725294638026,-6525.06999584,0.00015,2]
[336993562,1725294638037,-509.16789362,0.00015,2]
[336993563,1725294638060,-1294.19060398,0.00015,2]
[336993564,1725294638072,-421.399227,0.00015,2]
[336993616,1725294639633,-475127.56990678,0.00015,2]
[336993617,1725294639646,-1321.63714818,0.00015,2]
[336993618,1725294639658,-2303.5,0.00015,2]
[336993619,1725294639841,-844.59940541,0.00015,2]
[336993620,1725294639854,-1663.5002,0.00015,2]
[336993621,1725294639865,-343.17933231,0.00015,2]
[336993622,1725294639876,-209389.54380259,0.00015,2]
[336993623,1725294639887,-33598.95918226,0.00015,2]
[336993624,1725294639898,-38721.42066455,0.00015,2]
[336993625,1725294639911,-267.84,0.00015,2]
[336993626,1725294639922,-6779.68629018,0.00015,2]
[336993627,1725294639933,-660.549,0.00015,2]
[336993628,1725294639945,-2266.97183016,0.00015,2]
[336993629,1725294639957,-738.06282358,0.00015,2]
[336993630,1725294639970,-6678.40024662,0.00015,2]
[336993631,1725294639985,-478.75263346,0.00015,2]
[336993632,1725294639996,-59377.57373107,0.00015,2]
[336993633,1725294640008,-889.49999995,0.00015,2]
[336993634,1725294640019,-864.85,0.00015,2]
[336993635,1725294640030,-400.075,0.00015,2]
[336993636,1725294640045,-304.33735203,0.00015,2]
[336993639,1725294640056,-476.45777715,0.00015,2]
[336993641,1725294640068,-9966.59457117,0.00015,2]
[336993643,1725294640083,-1986.34492326,0.00015,2]
[336993645,1725294640094,-602.7973578,0.00015,2]
[336993647,1725294640110,-578.06080476,0.00015,2]
[336993691,1725294642622,-330.0106221,0.00014947,2]
[336993692,1725294642631,-562.04300337,0.00015,2]
[336993693,1725294642643,-3036.38927694,0.00015,2]
[336993694,1725294642655,-13190.16168377,0.00015,2]
[336993695,1725294642680,-336.84091214,0.00015,2]
[336993696,1725294642692,-1202.82442801,0.00015,2]
[336993698,1725294644169,-500.57827625,0.00015,2]
[336993702,1725294645704,-592.7704,0.00015,2]
[336993703,1725294645716,-5266.159,0.00015,2]
[336993704,1725294645739,-14762.86185985,0.00015,2]
[336993705,1725294645763,-1584.71997666,0.00015,2]
[336993706,1725294645775,-448.50530183,0.00015,2]
[336993707,1725294645789,-648.49999999,0.00015,2]
[336993708,1725294645822,-506.17381525,0.00015,2]
[336993709,1725294645833,-12370.4,0.00015,2]
[336993710,1725294645881,-2008.43148739,0.00015,2]
[336993729,1725294803069,500.0,0.00027,120]
[336993730,1725295116405,-320.0,0.00014369,2]
[336993731,1725295117772,-320.0,0.00014369,2]
[336993732,1725295123898,176.28,0.00010959,2]
[336993733,1725295591155,673.68,0.00012918,2]
[336993734,1725295702740,550.0,0.00011,2]
[336993746,1725295831722,-250.0,0.00014456,2]
[336993747,1725295831732,-420.93977412,0.00014561,2]
[336993748,1725295831741,-185.82,0.00014589,2]
[336993749,1725295831751,-428.82,0.00014663,2]
[336993750,1725295831760,-183.00821368,0.00014673,2]
[336993751,1725295831769,-250.0,0.00014716,2]
[336993752,1725295831779,-468.06410233,0.00014773,2]
[336993753,1725295831791,-531.93589767,0.00014773,2]
[336993754,1725295831800,-200.0,0.00014773,2]
[336993755,1725295831809,-300.0,0.000148,5]
[336993756,1725295831819,-919.94594,0.0001485,2]
[336993757,1725295831829,-300.0,0.00014899,2]
[336993758,1725295831839,-299.99,0.00014899,2]
[336993759,1725295831848,-1631.59,0.00014899,2]
[336993760,1725295831858,-499.99,0.00014899,2]
[336993761,1725295831867,-183.96068253,0.000149,2]
[336993762,1725295831877,-185.73578068,0.000149,2]
[336993763,1725295831887,-600.0,0.000149,5]
[336993764,1725295831898,-803.99214815,0.000149,2]
[336993765,1725295831908,-330.0106221,0.000149,2]
[336993766,1725295831917,-1356.96852111,0.000149,2]
[336993767,1725295831927,-299.44,0.00014907,2]
[336993768,1725295831936,-150.0,0.00014932,2]
[336993769,1725295831946,-456.23,0.00014944,2]
[336993770,1725295831956,-624.52564304,0.00014944,2]
[336993771,1725295831967,-302.04305159,0.00014944,2]
[336993772,1725295831978,-6506.86130537,0.00014944,2]
[336993773,1725295831988,-150.0,0.00014946,2]
[336993774,1725295831998,-162.53833169,0.00014947,2]
[336993775,1725295832007,-391.60036294,0.00014947,2]
[336993776,1725295832037,-854.16488114,0.00014947,2]
[336993777,1725295832048,-686.70513767,0.00014947,2]
[336993778,1725295832060,-1132.38722525,0.00014947,2]
[336993779,1725295832071,-428.45648914,0.00014947,2]
[336993780,1725295832082,-711.01118688,0.00014947,2]
[336993781,1725295832094,-1827.91072361,0.00014947,2]
[336993783,1725295832113,-561.47399337,0.00014947,2]
[336993785,1725295832122,-1485.45,0.00014947,2]
[336993786,1725295832132,-286.6,0.00014947,2]
[336993787,1725295832141,-193.97,0.00014947,2]
[336993788,1725295832161,-348.87,0.00014954,2]
[336993789,1725295832171,-887.81,0.00014954,2]
[336993790,1725295832180,-783.92,0.00014954,2]
[336993791,1725295832190,-3291.72950663,0.0001499,3]
[336993792,1725295832202,-5243.29172088,0.0001499,3]
[336993793,1725295832213,-497.48514,0.0001499,3]
[336993794,1725295832225,-20176.23940339,0.0001499,3]
[336993795,1725295832234,-150.5,0.0001499,2]
[336993796,1725295832244,-381.28,0.0001499,3]
[336993797,1725295832254,-500.0,0.00014999,2]
[336993798,1725295832264,-500.0,0.00014999,2]
[336993799,1725295832275,-500.0,0.00014999,2]
[336993800,1725295832285,-500.0,0.00014999,2]
[336993801,1725295832294,-500.0,0.00014999,2]
[336993802,1725295832303,-353.41435074,0.00014999,2]
[336993803,1725295832312,-425.91505848,0.00014999,2]
[336993804,1725295832321,-439.82899562,0.00014999,2]
[336993805,1725295832331,-500.0,0.00014999,2]
[336993806,1725295832340,-300.0,0.00014999,2]
[336993807,1725295832350,-350.0,0.00014999,2]
[336993808,1725295832359,-500.0,0.00014999,2]
[336993809,1725295832368,-500.0,0.00014999,2]
[336993810,1725295832378,-500.0,0.00014999,2]
[336993811,1725295832388,-500.0,0.00014999,2]
[336993812,1725295832400,-500.0,0.00014999,2]
[336993813,1725295832410,-269.85486217,0.00014999,2]
[336993814,1725295832422,-500.0,0.00014999,2]
[336993815,1725295832432,-500.0,0.00014999,2]
[336993816,1725295832442,-500.0,0.00014999,2]
[336993817,1725295832453,-500.0,0.00014999,2]
[336993818,1725295832463,-500.0,0.00014999,2]
[336993819,1725295832473,-500.0,0.00014999,2]
[336993820,1725295832483,-500.0,0.00014999,2]
[336993821,1725295832494,-500.0,0.00014999,2]
[336993822,1725295832504,-500.0,0.00014999,2]
[336993823,1725295832514,-500.0,0.00014999,2]
[336993824,1725295832524,-500.0,0.00014999,2]
[336993825,1725295832535,-334.39836107,0.00014999,2]
[336993826,1725295832549,-55481.96099386,0.00015,2]
[336993827,1725295832565,-536.83568415,0.00015,2]
[336993828,1725295832579,-39708.8931872,0.00015,2]
[336993829,1725295832596,-835.76890851,0.00015,2]
[336993830,1725295832609,-1092.85082834,0.00015,2]
[336993831,1725295832626,-194703.31051519,0.00015,2]
[336993832,1725295832639,-486.59595781,0.00015,2]
[336993833,1725295832663,-6005.0,0.00015,2]
[336993836,1725295837779,-290.74906554,0.00015,2]
[336993837,1725295837791,-1999.0631,0.00015,2]
[336993838,1725295837803,-61750.00000002,0.00015,2]
[336993840,1725295837834,-6186.18,0.00015,2]
[336993841,1725295837901,-59725.21324809,0.00015,2]
[336993842,1725295837913,-1338.18650899,0.00015,2]
[336993843,1725295837924,-2644.17619719,0.00015,2]
[336993844,1725295838016,-950746.63891802,0.00015,2]
[336993845,1725295838072,-1264.43557993,0.00015,2]
[336993869,1725295839740,-1539.999995,0.00015,2]
[336993870,1725295839796,-1514.00459248,0.00015,2]
[336993871,1725295839808,-1505.04594099,0.00015,2]
[336993872,1725295839909,-29872.41132061,0.00015,2]
[336993873,1725295839921,-435.92970156,0.00015,2]
[336993874,1725295839967,-5859.46811615,0.00015,2]
[336993875,1725295840077,-6548.86034305,0.00015,2]
[336993882,1725295844470,-1109.25964547,0.00015,2]
[336993883,1725295844481,-603.56506181,0.00015,2]
[336993884,1725295844492,-642.70249532,0.00015,2]
[336993885,1725295844503,-88697.12753509,0.00015,2]
[336993886,1725295844513,-18547.434,0.00015,2]
[336993887,1725295844522,-150.99,0.00015,2]
[336993888,1725295844531,-673.68,0.00015182,2]
[336993889,1725295844540,-803.99214813,0.00015614,2]
[336993890,1725295844552,-151.99,0.00015885,2]
[336993891,1725295844561,-250.0,0.0001589,2]
[336993892,1725295844570,-172.33,0.0001594,2]
[336993893,1725295844579,-4216.0,0.00016,2]
[336993894,1725295844588,-1356.96852103,0.00016011,2]
[336993895,1725295844599,-200.0,0.00016026,2]
[336993896,1725295844608,-174.76,0.00016278,2]
[336993897,1725295844617,-420.0,0.00016308,2]
[336993898,1725295844627,-803.99214813,0.00016329,2]
[336993899,1725295844637,-185.82,0.00016413,2]
[336993900,1725295844646,-150.0,0.00016438,2]
[336993901,1725295844655,-590.0,0.00016567,2]
[336993902,1725295844664,-1000.0,0.0001662,2]
[336993903,1725295844673,-182.2,0.00016633,2]
[336993904,1725295844682,-1000.0,0.00016824,2]
[336993905,1725295844691,-1000.0,0.00016824,2]
[336993906,1725295844700,-1000.0,0.00016824,2]
[336993907,1725295844709,-1000.0,0.00016824,2]
[336993908,1725295844719,-1000.0,0.00016824,2]
[336993909,1725295844728,-1000.0,0.00016824,2]
[336993910,1725295844737,-1000.0,0.00016824,2]
[336993911,1725295844746,-1000.0,0.00016824,2]
[336993912,1725295844755,-1000.0,0.00016824,2]
[336993913,1725295844765,-1000.0,0.00016824,2]
[336993914,1725295844773,-1000.0,0.00016824,2]
[336993915,1725295844782,-1000.0,0.00016824,2]
[336993916,1725295844792,-1000.0,0.00016824,2]
[336993917,1725295844801,-1000.0,0.00016824,2]
[336993918,1725295844810,-1000.0,0.00016824,2]
[336993919,1725295844819,-1000.0,0.00016824,2]
[336993920,1725295844828,-1000.0,0.00016824,2]
[336993921,1725295844838,-1000.0,0.00016824,2]
[336993922,1725295844849,-1000.0,0.00016824,2]
[336993923,1725295844858,-1000.0,0.00016824,2]
[336993924,1725295844867,-1000.0,0.00016824,2]
[336993925,1725295844876,-1000.0,0.00016824,2]
[336993926,1725295844886,-1000.0,0.00016824,2]
[336993927,1725295844895,-1000.0,0.00016824,2]
[336993928,1725295844904,-1000.0,0.00016824,2]
[336993929,1725295844914,-689.0,0.00016824,2]
[336993930,1725295844923,-1259.0,0.000169,2]
[336993931,1725295844932,-447.0,0.000169,2]
[336993932,1725295844941,-623.0,0.000169,2]
[336993933,1725295844950,-1545.0,0.000169,2]
[336993934,1725295844959,-930.0,0.000169,2]
[336993935,1725295844969,-557.0,0.000169,2]
[336993936,1725295844979,-810.0,0.000169,2]
[336993937,1725295844988,-552.0,0.000169,2]
[336993938,1725295844998,-1899.0,0.000169,2]
[336993939,1725295845008,-3323.0,0.000169,2]
[336993940,1725295845018,-1139.0,0.000169,2]
[336993941,1725295845029,-248.0,0.000169,2]
[336993942,1725295845038,-805.0,0.000169,2]
[336993943,1725295845048,-150.09,0.000169,2]
[336993944,1725295845057,-1000.0,0.00016961,2]
[336993945,1725295845067,-1000.0,0.00016961,2]
[336993946,1725295845076,-679.0,0.00016961,2]
[336993947,1725295845085,-803.99214813,0.00017043,2]
[336993948,1725295845095,-1356.96852103,0.00017122,2]
[336993949,1725295845104,-173.38,0.00017138,2]
[336993950,1725295845114,-919.94595,0.0001735,2]
[336993951,1725295845124,-673.68,0.00017446,2]
[336993952,1725295845138,-500.0,0.00017556,2]
[336993953,1725295845149,-500.0,0.00017556,2]
[336993954,1725295845162,-500.0,0.00017556,2]
[336993955,1725295845174,-900.0,0.00017556,2]
[336993956,1725295845186,-800.0,0.00017556,2]
[336993957,1725295845198,-803.99214813,0.00017757,2]
[336993958,1725295845209,-587.0,0.0001785,2]
[336993959,1725295845221,-152.96,0.00018119,2]
[336993960,1725295845231,-1356.96852103,0.00018233,2]
[336993961,1725295845243,-185.82,0.00018236,2]
[336993962,1725295845253,-1000.0,0.00018467,2]
[336993963,1725295845263,-803.99214813,0.00018471,2]
[336993964,1725295845275,-900.0,0.00018652,2]
[336993965,1725295845287,-800.0,0.00018652,2]
[336993966,1725295845297,-900.0,0.000189,6]
[336993967,1725295845308,-500.0,0.00019178,2]
[336993968,1725295845319,-500.0,0.00019178,2]
[336993969,1725295845330,-500.0,0.00019178,2]
[336993970,1725295845341,-179.15,0.00019178,2]
[336993971,1725295845352,-500.0,0.00019178,2]
[336993972,1725295845363,-399.7,0.00019178,2]
[336993973,1725295845375,-500.0,0.00019178,2]
[336993974,1725295845388,-252.31,0.00019178,2]
[336993975,1725295845401,-542.86,0.00019178,2]
[336993976,1725295845420,-564.12,0.00019178,2]
[336993977,1725295845432,-500.0,0.00019178,2]
[336993978,1725295845444,-500.0,0.00019178,2]
[336993979,1725295845454,-500.0,0.00019178,2]
[336993980,1725295845465,-500.0,0.00019178,2]
[336993983,1725295845475,-500.0,0.00019178,2]
[336993984,1725295845485,-500.0,0.00019178,2]
[336993986,1725295845496,-500.0,0.00019178,2]
[336993987,1725295845507,-500.0,0.00019178,2]
[336993988,1725295845517,-266.87,0.00019178,2]
[336993989,1725295845528,-500.0,0.00019178,2]
[336993990,1725295845539,-507.68484872,0.00019178,2]
[336993991,1725295845553,-526.29,0.00019178,2]
[336993992,1725295845564,-500.0,0.00019178,2]
[336993993,1725295845574,-500.0,0.00019178,2]
[336993994,1725295845585,-500.0,0.00019178,2]
[336993995,1725295845597,-499.5131761,0.00019178,2]
[336993996,1725295845608,-500.0,0.00019178,2]
[336993997,1725295845619,-500.0,0.00019178,2]
[336993998,1725295845630,-500.0,0.00019178,2]
[336993999,1725295845640,-571.94,0.00019178,2]
[336994000,1725295845650,-500.0,0.00019178,2]
[336994001,1725295845660,-500.0,0.00019178,2]
[336994002,1725295845671,-500.0,0.00019178,2]
[336994003,1725295845681,-500.0,0.00019178,2]
[336994004,1725295845691,-496.71,0.00019178,2]
[336994005,1725295845701,-500.0,0.00019178,2]
[336994007,1725295845711,-500.0,0.00019178,2]
[336994009,1725295845722,-500.0,0.00019178,2]
[336994011,1725295845733,-589.72,0.00019178,2]
[336994013,1725295845743,-500.0,0.00019178,2]
[336994016,1725295845754,-574.37,0.00019178,2]
[336994018,1725295845764,-500.0,0.00019178,2]
[336994020,1725295845774,-577.51,0.00019178,2]
[336994022,1725295845785,-500.0,0.00019178,2]
[336994024,1725295845795,-500.0,0.00019178,2]
[336994025,1725295845807,-275.86,0.00019178,2]
[336994026,1725295845818,-500.0,0.00019178,2]
[336994027,1725295845828,-482.98,0.00019178,2]
[336994028,1725295845840,-636.98,0.00019178,2]
[336994029,1725295845850,-565.12118809,0.00019178,2]
[336994030,1725295845862,-500.0,0.00019178,2]
[336994031,1725295845872,-500.0,0.00019178,2]
[336994032,1725295845882,-543.04,0.00019178,2]
[336994033,1725295845892,-500.0,0.00019178,2]
[336994034,1725295845901,-500.0,0.00019178,2]
[336994035,1725295845917,-500.0,0.00019178,2]
[336994036,1725295845927,-500.0,0.00019178,2]
[336994037,1725295845937,-500.0,0.00019178,2]
[336994038,1725295845946,-500.0,0.00019178,2]
[336994039,1725295845958,-500.0,0.00019178,2]
[336994040,1725295845968,-432.97728856,0.00019178,2]
[336994041,1725295845979,-500.0,0.00019178,2]
[336994042,1725295845990,-500.0,0.00019178,2]
[336994043,1725295846001,-507.44,0.00019178,2]
[336994044,1725295846012,-500.0,0.00019178,2]
[336994045,1725295846023,-500.0,0.00019178,2]
[336994046,1725295846034,-209.98874302,0.00019178,2]
[336994047,1725295846044,-500.0,0.00019178,2]
[336994048,1725295846054,-500.0,0.00019178,2]
[336994049,1725295846065,-500.0,0.00019178,2]
[336994050,1725295846079,-500.0,0.00019178,2]
[336994051,1725295846089,-500.0,0.00019178,2]
[336994052,1725295846100,-195.29,0.00019178,2]
[336994053,1725295846110,-500.0,0.00019178,2]
[336994054,1725295846122,-189.01,0.00019178,2]
[336994055,1725295846133,-500.0,0.00019178,2]
[336994056,1725295846143,-500.0,0.00019178,2]
[336994057,1725295846155,-500.0,0.00019178,2]
[336994058,1725295846165,-254.49,0.00019178,2]
[336994059,1725295846176,-500.0,0.00019178,2]
[336994060,1725295846186,-500.0,0.00019178,2]
[336994061,1725295846197,-500.0,0.00019178,2]
[336994062,1725295846206,-500.0,0.00019178,2]
[336994063,1725295846217,-230.55,0.00019178,2]
[336994064,1725295846227,-500.0,0.00019178,2]
[336994065,1725295846238,-526.30674119,0.00019178,2]
[336994066,1725295846248,-555.53,0.00019178,2]
[336994067,1725295846258,-475.16646691,0.00019178,2]
[336994068,1725295846268,-500.0,0.00019178,2]
[336994069,1725295846278,-641.0,0.00019178,2]
[336994070,1725295846289,-500.0,0.00019178,2]
[336994071,1725295846301,-624.75,0.00019178,2]
[336994072,1725295846311,-500.0,0.00019178,2]
[336994073,1725295846321,-500.0,0.00019178,2]
[336994074,1725295846333,-500.0,0.00019178,2]
[336994075,1725295846343,-551.7,0.00019178,2]
[336994076,1725295846352,-500.0,0.00019178,2]
[336994077,1725295846364,-500.0,0.00019178,2]
[336994078,1725295846374,-500.0,0.00019178,2]
[336994079,1725295846385,-500.0,0.00019178,2]
[336994080,1725295846395,-563.78,0.00019178,2]
[336994081,1725295846407,-500.0,0.00019178,2]
[336994082,1725295846417,-500.0,0.00019178,2]
[336994083,1725295846427,-610.49,0.00019178,2]
[336994084,1725295846437,-500.0,0.00019178,2]
[336994085,1725295846447,-500.0,0.00019178,2]
[336994086,1725295846458,-500.0,0.00019178,2]
[336994087,1725295846470,-297.1,0.00019178,2]
[336994088,1725295846481,-500.0,0.00019178,2]
[336994089,1725295846491,-500.0,0.00019178,2]
[336994090,1725295846503,-500.0,0.00019178,2]
[336994091,1725295846515,-526.14,0.00019178,2]
[336994092,1725295846525,-500.0,0.00019178,2]
[336994093,1725295846536,-522.08,0.00019178,2]
[336994094,1725295846547,-500.0,0.00019178,2]
[336994095,1725295846560,-500.0,0.00019178,2]
[336994096,1725295846570,-456.54,0.00019178,2]
[336994097,1725295846582,-500.0,0.00019178,2]
[336994098,1725295846595,-569.65,0.00019178,2]
[336994099,1725295846605,-500.0,0.00019178,2]
[336994100,1725295846615,-500.0,0.00019178,2]
[336994101,1725295846626,-500.0,0.00019178,2]
[336994102,1725295846636,-500.0,0.00019178,2]
[336994103,1725295846646,-500.0,0.00019178,2]
[336994104,1725295846656,-500.0,0.00019178,2]
[336994105,1725295846666,-500.0,0.00019178,2]
[336994106,1725295846676,-500.0,0.00019178,2]
[336994107,1725295846687,-500.0,0.00019178,2]
[336994108,1725295846698,-168.1,0.00019178,2]
[336994109,1725295846708,-500.0,0.00019178,2]
[336994110,1725295846718,-500.0,0.00019178,2]
[336994111,1725295846728,-500.0,0.00019178,2]
[336994112,1725295846738,-500.0,0.00019178,2]
[336994113,1725295846749,-500.0,0.00019178,2]
[336994114,1725295846761,-526.15,0.00019178,2]
[336994115,1725295846772,-500.0,0.00019178,2]
[336994116,1725295846783,-500.0,0.00019178,2]
[336994117,1725295846794,-500.0,0.00019178,2]
[336994118,1725295846805,-384.48,0.00019178,2]
[336994119,1725295846816,-500.0,0.00019178,2]
[336994120,1725295846827,-500.0,0.00019178,2]
[336994121,1725295846839,-500.0,0.00019178,2]
[336994122,1725295846850,-500.0,0.00019178,2]
[336994123,1725295846862,-500.0,0.00019178,2]
[336994124,1725295846873,-437.26,0.00019178,2]
[336994125,1725295846885,-500.0,0.00019178,2]
[336994126,1725295846896,-500.0,0.00019178,2]
[336994127,1725295846906,-500.0,0.00019178,2]
[336994128,1725295846916,-500.0,0.00019178,2]
[336994129,1725295846926,-500.0,0.00019178,2]
[336994130,1725295846937,-500.0,0.00019178,2]
[336994131,1725295846949,-500.0,0.00019178,2]
[336994132,1725295846961,-500.0,0.00019178,2]
[336994133,1725295846972,-500.0,0.00019178,2]
[336994134,1725295846983,-500.0,0.00019178,2]
[336994135,1725295846994,-500.0,0.00019178,2]
[336994136,1725295847004,-570.83,0.00019178,2]
[336994137,1725295847014,-500.0,0.00019178,2]
[336994138,1725295847024,-500.0,0.00019178,2]
[336994139,1725295847034,-500.0,0.00019178,2]
[336994140,1725295847044,-500.0,0.00019178,2]
[336994141,1725295847054,-500.0,0.00019178,2]
[336994142,1725295847064,-500.0,0.00019178,2]
[336994143,1725295847075,-500.0,0.00019178,2]
[336994144,1725295847086,-500.0,0.00019178,2]
[336994145,1725295847097,-500.0,0.00019178,2]
[336994146,1725295847107,-500.0,0.00019178,2]
[336994147,1725295847117,-500.0,0.00019178,2]
[336994148,1725295847128,-500.0,0.00019178,2]
[336994149,1725295847138,-500.0,0.00019178,2]
[336994150,1725295847148,-500.0,0.00019178,2]
[336994151,1725295847159,-500.0,0.00019178,2]
[336994152,1725295847169,-500.0,0.00019178,2]
[336994153,1725295847179,-500.0,0.00019178,2]
[336994154,1725295847189,-500.0,0.00019178,2]
[336994155,1725295847199,-500.0,0.00019178,2]
[336994156,1725295847210,-344.58,0.00019178,2]
[336994157,1725295847221,-500.0,0.00019178,2]
[336994158,1725295847232,-500.0,0.00019178,2]
[336994159,1725295847242,-500.0,0.00019178,2]
[336994160,1725295847253,-500.0,0.00019178,2]
[336994161,1725295847263,-182.23,0.00019178,2]
[336994162,1725295847273,-500.0,0.00019178,2]
[336994163,1725295847283,-500.0,0.00019178,2]
[336994164,1725295847293,-500.0,0.00019178,2]
[336994165,1725295847303,-458.4,0.00019178,2]
[336994166,1725295847313,-500.0,0.00019178,2]
[336994167,1725295847323,-500.0,0.00019178,2]
[336994168,1725295847333,-500.0,0.00019178,2]
[336994169,1725295847343,-562.38,0.00019178,2]
[336994170,1725295847354,-500.0,0.00019178,2]
[336994171,1725295847363,-500.0,0.00019178,2]
[336994172,1725295847373,-500.0,0.00019178,2]
[336994173,1725295847383,-500.0,0.00019178,2]
[336994174,1725295847393,-500.0,0.00019178,2]
[336994175,1725295847403,-500.0,0.00019178,2]
[336994176,1725295847415,-500.0,0.00019178,2]
[336994177,1725295847426,-500.0,0.00019178,2]
[336994178,1725295847435,-500.0,0.00019178,2]
[336994179,1725295847446,-500.0,0.00019178,2]
[336994180,1725295847456,-500.0,0.00019178,2]
[336994181,1725295847466,-500.0,0.00019178,2]
[336994182,1725295847477,-585.25,0.00019178,2]
[336994183,1725295847487,-500.0,0.00019178,2]
[336994184,1725295847497,-500.0,0.00019178,2]
[336994185,1725295847508,-500.0,0.00019178,2]
[336994186,1725295847518,-500.0,0.00019178,2]
[336994187,1725295847528,-500.0,0.00019178,2]
[336994188,1725295847538,-500.0,0.00019178,2]
[336994189,1725295847550,-500.0,0.00019178,2]
[336994190,1725295847561,-500.0,0.00019178,2]
[336994191,1725295847572,-500.0,0.00019178,2]
[336994192,1725295847582,-500.0,0.00019178,2]
[336994193,1725295847593,-500.0,0.00019178,2]
[336994194,1725295847604,-500.0,0.00019178,2]
[336994195,1725295847614,-500.0,0.00019178,2]
[336994196,1725295847627,-561.32,0.00019178,2]
[336994197,1725295847637,-500.0,0.00019178,2]
[336994198,1725295847647,-513.250005,0.00019178,2]
[336994199,1725295847657,-500.0,0.00019178,2]
[336994200,1725295847667,-500.0,0.00019178,2]
[336994201,1725295847677,-500.0,0.00019178,2]
[336994202,1725295847687,-500.0,0.00019178,2]
[336994203,1725295847697,-569.61,0.00019178,2]
[336994204,1725295847707,-500.0,0.00019178,2]
[336994205,1725295847718,-500.0,0.00019178,2]
[336994206,1725295847729,-500.0,0.00019178,2]
[336994207,1725295847738,-520.43,0.00019178,2]
[336994208,1725295848013,-500.0,0.00019178,2]
[336994209,1725295848023,-500.0,0.00019178,2]
[336994210,1725295848033,-500.0,0.00019178,2]
[336994211,1725295848042,-500.0,0.00019178,2]
[336994212,1725295848051,-368.2,0.00019178,2]
[336994213,1725295848060,-500.0,0.00019178,2]
[336994214,1725295848070,-501.42846647,0.00019178,2]
[336994215,1725295848079,-500.0,0.00019178,2]
[336994216,1725295848089,-500.0,0.00019178,2]
[336994217,1725295848098,-500.0,0.00019178,2]
[336994218,1725295848108,-500.0,0.00019178,2]
[336994219,1725295848117,-500.0,0.00019178,2]
[336994220,1725295848126,-500.0,0.00019178,2]
[336994221,1725295848136,-500.0,0.00019178,2]
[336994222,1725295848146,-170.905205,0.00019178,2]
[336994223,1725295848155,-500.0,0.00019178,2]
[336994224,1725295848165,-500.0,0.00019178,2]
[336994225,1725295848174,-500.0,0.00019178,2]
[336994226,1725295848183,-500.0,0.00019178,2]